Workbook

Sheet Лист1
I1: К постановлению Администрации Североуральского городского округа от .03.2015г. №
A2: Приложение № 2 к муниципальной программе Североуральского городского округа «Развитие жилищно-коммунального хозяйства и транспортного обслуживания населения, повышение энергетической эффективности и охрана окружающей среды в Североуральском городском округе» на 2014-2020 годы
A3: План мероприятий
A4: по выполнению муниципальной программы Североуральского городского округа
A5: «Развитие жилищно-коммунального хозяйства и транспортного обслуживания населения,
A6: повышение энергетической эффективности и охрана окружающей среды в Североуральском городском округе» на 2014-2020 годы
A8: № строки | B8: Наименование мероприятия/ Источники расходов на финансирование | C8: Объем расходов на выполнение мероприятия за счет всех источников ресурсного обеспечения, тыс. руб. | K8: Номер строки целевых показателей, на достижение которых направлены мероприятия
C9: Всего | D9: первый год | E9: второй год | F9: третий год | G9: четвертый год | H9: пятый год | I9: шестой год | J9: седьмой год
B10: ВСЕГО по муниципальной программе, в том числе: | C10: =SUM(C11:C13) -> 1,033,717.5 | D10: 283,826.9 | E10: 346,214.9 | F10: 91,013.3 | G10: 78,165.6 | H10: 78,165.6 | I10: 78,165.6 | J10: 78,165.6 | K10: Х
B11: местный бюджет | C11: =SUM(D11:J11) -> 624,718.5 | D11: =SUM(D15+D19) -> 92,792.8 | E11: =SUM(E15+E19) -> 128,250.0 | F11: 91,013.3 | G11: 78,165.6 | H11: 78,165.6 | I11: 78,165.6 | J11: 78,165.6
B12: областной бюджет | C12: =SUM(D12:J12) -> 240,681.4 | D12: =SUM(D16+D20) -> 109,216.1 | E12: =SUM(E16+E20) -> 131,465.3 | F12: =SUM(F16+F20) -> 0.0 | G12: =SUM(G16+G20) -> 0.0 | H12: =SUM(H16+H20) -> 0.0 | I12: =SUM(I16+I20) -> 0.0 | J12: =SUM(J16+J20) -> 0.0
B13: федеральный бюджет | C13: =SUM(D13:J13) -> 168,317.6 | D13: =SUM(D21+D17) -> 81,818.0 | E13: =SUM(E21+E17) -> 86,499.6 | F13: 0.0 | G13: 0.0 | H13: 0.0 | I13: 0.0 | J13: 0.0
B14: Капитальные вложения | C14: =SUM(C15:C17) -> 554,870.0 | D14: =SUM(D15:D17) -> 232,761.9 | E14: =SUM(E15:E17) -> 273,125.2 | F14: 14,150.5 | G14: 8,708.1 | H14: 8,708.1 | I14: 8,708.1 | J14: 8,708.1 | K14: Х
B15: местный бюджет | C15: =SUM(D15:J15) -> 148,892.0 | D15: =D29+D95+D143+D166+D196+D229+D295+D314 -> 44,727.8 | E15: 55,181.3 | F15: 14150.5 | G15: 8,708.1 | H15: 8,708.1 | I15: 8,708.1 | J15: 8,708.1
B16: областной бюджет | C16: =SUM(D16:J16) -> 237,660.4 | D16: =D96+D167+D30 -> 106,216.1 | E16: =E96+E167 -> 131,444.3 | F16: 0.0 | G16: 0.0 | H16: 0.0 | I16: 0.0 | J16: 0.0
B17: федеральный бюджет | C17: =SUM(D17:J17) -> 168,317.6 | D17: =D97+D168 -> 81,818.0 | E17: 86,499.6 | F17: 0.0 | G17: 0.0 | H17: 0.0 | I17: 0.0 | J17: 0.0
B18: Прочие нужды | C18: =SUM(C19:C20) -> 478,847.5 | D18: =SUM(D19:D20) -> 51,065.0 | E18: =SUM(E19:E20) -> 73,089.7 | F18: 76,862.8 | G18: 69,457.5 | H18: 69,457.5 | I18: 69,457.5 | J18: 69,457.5 | K18: Х
B19: местный бюджет | C19: =SUM(D19:J19) -> 475,826.5 | D19: =D44+D118+D152+D184+D238+D304+D333+D205+D286 -> 48,065.0 | E19: 73,068.7 | F19: 76,862.8 | G19: 69,457.5 | H19: 69,457.5 | I19: 69,457.5 | J19: 69,457.5
B20: областной бюджет | C20: =SUM(D20:J20) -> 3,021.0 | D20: =SUM(D119+D332) -> 3,000.0 | E20: 21.0 | F20: 0.0 | G20: 0.0 | H20: 0.0 | I20: 0.0 | J20: 0.0
B21: федеральный бюджет | C21: =SUM(D21:J21) -> 0.0 | D21: 0.0 | E21: =E119 -> 0.0 | F21: 0.0 | G21: 0.0 | H21: 0.0 | I21: 0.0 | J21: 0.0
A22: Подпрограмма 1: Комплексное благоустройство территории Североуральского городского округа
B23: Всего по подпрограмме 1, | C23: =SUM(C25+C26) -> 193,059.7 | D23: =SUM(D25+D26) -> 25,725.2 | E23: =SUM(E25) -> 23,186.0 | F23: 30,055.3 | G23: 28,523.3 | H23: 28,523.3 | I23: 28,523.3 | J23: 28,523.3 | K23: Х
B24: в том числе:
B25: местный бюджет | C25: =SUM(D25:J25) -> 191,845.0 | D25: =SUM(D29+D44) -> 24,510.5 | E25: 23,186.0 | F25: 30,055.3 | G25: 28,523.3 | H25: 28,523.3 | I25: 28,523.3 | J25: 28,523.3
B26: областной бюджет | C26: =SUM(D26:J26) -> 1,214.7 | D26: =SUM(D30) -> 1,214.7 | E26: =SUM(E30) -> 0.0 | F26: 0.0 | G26: 0.0 | H26: 0.0 | I26: 0.0 | J26: 0.0
A27: 1. Капитальные вложения
B28: Всего по направлению «Капитальные вложения» всего, в том числе | C28: =SUM(D28:J28) -> 26,388.3 | D28: =SUM(D29+D30) -> 3,536.4 | E28: =SUM(E29) -> 1,439.2 | F28: 6,425.5 | G28: 3,746.8 | H28: 3,746.8 | I28: 3,746.8 | J28: 3,746.8 | K28: Х
B29: местный бюджет | C29: =SUM(D29:J29) -> 25,173.6 | D29: =SUM(D40) -> 2,321.7 | E29: =SUM(E40) -> 1,439.2 | F29: 6,425.5 | G29: 3,746.8 | H29: 3,746.8 | I29: 3,746.8 | J29: 3,746.8
B30: областной бюджет | C30: =SUM(D30:J30) -> 1,214.7 | D30: =SUM(D37) -> 1,214.7 | E30: =SUM(E37) -> 0.0 | F30: 0.0 | G30: 0.0 | H30: 0.0 | I30: 0.0 | J30: 0.0
A31: 1.1. Бюджетные инвестиции в объекты капитального строительства
B32: Бюджетные инвестиции в объекты капитального строительства всего, в том числе | C32: 0 | D32: 0 | E32: 0 | F32: 0 | G32: 0 | H32: 0 | I32: 0 | J32: 0 | K32: Х
B33: местный бюджет | C33: 0 | D33: 0 | E33: 0 | F33: 0 | G33: 0 | H33: 0 | I33: 0 | J33: 0
A34: 1.2. Иные капитальные вложения
B35: Всего | C35: =SUM(D35:J35) -> 26,388.3 | D35: =SUM(D36:D37) -> 3,536.4 | E35: =SUM(E36:E37) -> 1,439.2 | F35: 6,425.5 | G35: 3,746.8 | H35: 3,746.8 | I35: 3,746.8 | J35: 3,746.8 | K35: Х
B36: местный бюджет | C36: =SUM(D36:J36) -> 25,173.6 | D36: =SUM(D40) -> 2,321.7 | E36: =SUM(E40) -> 1,439.2 | F36: 6,425.5 | G36: 3,746.8 | H36: 3,746.8 | I36: 3,746.8 | J36: 3,746.8
B37: областной бюджет | C37: =SUM(D37:J37) -> 1,214.7 | D37: =SUM(D41) -> 1,214.7 | E37: =SUM(E41) -> 0.0 | F37: 0.0 | G37: 0.0 | H37: 0.0 | I37: 0.0 | J37: 0.0
A38: Мероприятие 1 Благоустройство дворовых территорий Североуральского городского округа
B39: Всего, из них | C39: =SUM(D39:J39) -> 26,388.3 | D39: =D40+D41 -> 3,536.4 | E39: =SUM(E40) -> 1,439.2 | F39: 6,425.5 | G39: 3,746.8 | H39: 3,746.8 | I39: 3,746.8 | J39: 3,746.8 | K39: 4
B40: местный бюджет | C40: =SUM(D40:J40) -> 25,173.6 | D40: 2,321.7 | E40: 1,439.2 | F40: 6,425.5 | G40: 3,746.8 | H40: =SUM(G40) -> 3,746.8 | I40: =SUM(H40) -> 3,746.8 | J40: =SUM(I40) -> 3,746.8
B41: областной бюджет | C41: =D41+E41+F41+G41+H41+I41+J41 -> 1,214.7 | D41: 1,214.7 | E41: 0.0 | F41: 0.0 | G41: 0.0 | H41: 0.0 | I41: 0.0 | J41: 0.0
A42: 3. Прочие нужды
B43: Всего по направлению «Прочие нужды», всего, в том числе: | C43: =SUM(D43:J43) -> 166,671.4 | D43: =SUM(D44) -> 22,188.8 | E43: =SUM(E44) -> 21,746.8 | F43: 23,629.8 | G43: 24,776.5 | H43: 24,776.5 | I43: 24,776.5 | J43: 24,776.5 | K43: Х | N43: =SUM(E40+E47) -> 1,696.2
B44: местный бюджет | C44: =SUM(D44:J44) -> 166,671.4 | D44: =SUM(D51+D54+D57+D60+D47) -> 22,188.8 | E44: =SUM(E51+E54+E57+E60+E47) -> 21,746.8 | F44: 23,629.8 | G44: 24,776.5 | H44: 24,776.5 | I44: 24,776.5 | J44: 24,776.5
A45: Мероприятие 1 Благоустройство дворовых территорий Североуральского городского округа
B46: Всего, из них | C46: =SUM(D46:J46) -> 567.9 | D46: =D47+D48 -> 310.9 | E46: =SUM(E47) -> 257.0 | F46: 0.0 | G46: 0.0 | H46: 0.0 | I46: 0.0 | J46: 0.0 | K46: 4
B47: местный бюджет | C47: =SUM(D47:J47) -> 567.9 | D47: 310.9 | E47: 257.0 | F47: 0.0 | G47: 0.0 | H47: =SUM(G47) -> 0.0 | I47: =SUM(H47) -> 0.0 | J47: =SUM(I47) -> 0.0
B48: областной бюджет | C48: =D48+E48+F48+G48+H48+I48+J48 -> 0.0 | D48: 0.0 | E48: 0.0 | F48: 0.0 | G48: 0.0 | H48: 0.0 | I48: 0.0 | J48: 0.0
A49: Мероприятие 3 - Уличное освещение
B50: Всего, из них | C50: =SUM(D50:J50) -> 89,201.0 | D50: =SUM(D51) -> 12,001.0 | E50: 11,800.0 | F50: 12,600.0 | G50: 13,200.0 | H50: 13,200.0 | I50: 13,200.0 | J50: 13,200.0 | K50: 7
B51: местный бюджет | C51: =SUM(D51:J51) -> 89,201.0 | D51: 12,001.0 | E51: 11,800.0 | F51: 12,600.0 | G51: 13,200.0 | H51: =SUM(G51) -> 13,200.0 | I51: =SUM(H51) -> 13,200.0 | J51: =SUM(I51) -> 13,200.0
A52: Мероприятие 4 - Озеленение (цветники, валка сухих деревьев)
B53: Всего, из них | C53: =SUM(D53:J53) -> 21,490.9 | D53: =SUM(D54) -> 2,890.9 | E53: 2,240.0 | F53: 3,150.0 | G53: 3,302.5 | H53: 3,302.5 | I53: 3,302.5 | J53: 3,302.5 | K53: 9
B54: местный бюджет | C54: =SUM(D54:J54) -> 21,490.9 | D54: 2,890.9 | E54: 2,240.0 | F54: 3,150.0 | G54: 3,302.5 | H54: =SUM(G54) -> 3,302.5 | I54: =SUM(H54) -> 3,302.5 | J54: =SUM(I54) -> 3,302.5
A55: Мероприятие 5 - Организация и содержание мест захоронения
B56: Всего, из них | C56: =SUM(D56:J56) -> 17,870.8 | D56: =SUM(D57) -> 2,263.1 | E56: 1,440.0 | F56: 2,724.5 | G56: 2,860.8 | H56: 2,860.8 | I56: 2,860.8 | J56: 2,860.8 | K56: 14
B57: местный бюджет | C57: =SUM(D57:J57) -> 17,870.8 | D57: 2,263.1 | E57: 1,440.0 | F57: 2,724.5 | G57: 2,860.8 | H57: =SUM(G57) -> 2,860.8 | I57: =SUM(H57) -> 2,860.8 | J57: =SUM(I57) -> 2,860.8
A58: Мероприятие 6 - Прочие мероприятия по благоустройству
B59: Всего, в том числе: | C59: =SUM(D59:J59) -> 37,540.8 | D59: =SUM(D60) -> 4,722.9 | E59: 6,009.8 | F59: =SUM(F60) -> 5,155.3 | G59: 5,413.2 | H59: 5,413.2 | I59: 5,413.2 | J59: 5,413.2 | K59: 5,9,11,12,13,15
B60: местный бюджет | C60: =SUM(D60:J60) -> 37,540.8 | D60: =SUM(D63+D66+D69+D72+D75+D81+D78+D84+D87) -> 4,722.9 | E60: 6,009.8 | F60: 5,155.3 | G60: 5,413.2 | H60: 5,413.2 | I60: 5,413.2 | J60: 5,413.2
A61: - Содержание памятников
B62: Всего: | C62: =SUM(C63) -> 2903.2 | D62: 369.2 | E62: 350.0 | F62: 420.0 | G62: 441.0 | H62: 441 | I62: 441 | J62: 441 | K62: 15
B63: местный бюджет | C63: =SUM(D63:J63) -> 2903.2 | D63: 369.2 | E63: 350.0 | F63: 420.0 | G63: 441.0 | H63: =SUM(G63) -> 441.0 | I63: =SUM(H63) -> 441.0 | J63: =SUM(I63) -> 441.0
A64: - Проведение комплекса профилактических работ по уходу за объектами благоустройства
B65: Всего: | C65: =SUM(C66) -> 7854.9 | D65: =SUM(D66) -> 1098.7 | E65: =SUM(E66) -> 750.0 | F65: 1155 | G65: 1212.8 | H65: 1212.8 | I65: 1212.8 | J65: 1212.8 | K65: 5
B66: местный бюджет | C66: =SUM(D66:J66) -> 7854.9 | D66: 1098.7 | E66: 750.0 | F66: 1,155.0 | G66: 1,212.8 | H66: =SUM(G66) -> 1,212.8 | I66: =SUM(H66) -> 1,212.8 | J66: =SUM(I66) -> 1,212.8
A67: - Регулирование численности безнадзорных животных
B68: Всего: | C68: =SUM(C69) -> 4516.3 | D68: =SUM(D69) -> 500.0 | E68: =SUM(E69) -> 550.0 | F68: 666.3 | G68: 700 | H68: 700 | I68: 700 | J68: 700 | K68: 11
B69: местный бюджет | C69: =SUM(D69:J69) -> 4516.3 | D69: 500.0 | E69: 550.0 | F69: 666.3 | G69: 700.0 | H69: 700.0 | I69: =SUM(H69) -> 700.0 | J69: =SUM(I69) -> 700.0
A70: - Содержание биоямы (скотомогильник)
B71: Всего: | C71: =SUM(C72) -> 1,085.2 | D71: =SUM(D72) -> 116.1 | E71: =SUM(E72) -> 150.0 | F71: 157.5 | G71: 165.4 | H71: 165.4 | I71: 165.4 | J71: 165.4 | K71: 13
B72: местный бюджет | C72: =SUM(D72:J72) -> 1,085.2 | D72: 116.1 | E72: 150.0 | F72: 157.5 | G72: 165.4 | H72: 165.4 | I72: =SUM(H72) -> 165.4 | J72: =SUM(I72) -> 165.4
A73: - Обустройство и эксплуатация новогодних городков
B74: Всего: | C74: =SUM(C75) -> 15,171.2 | D74: =SUM(D75) -> 1,685.5 | E74: =SUM(E75) -> 1,829.8 | F74: 2,241.5 | G74: 2,353.6 | H74: 2,353.6 | I74: 2,353.6 | J74: 2,353.6 | K74: 5
B75: местный бюджет | C75: =SUM(D75:J75) -> 15,171.2 | D75: 1,685.5 | E75: 1,829.8 | F75: 2,241.5 | G75: 2,353.6 | H75: 2,353.6 | I75: =SUM(H75) -> 2,353.6 | J75: =SUM(I75) -> 2,353.6
A76: - Приобретение декоративного освещения для улиц города Североуральска
B77: Всего: | C77: =SUM(C78) -> 1,373.4 | D77: =SUM(D78) -> 773.4 | E77: =SUM(E78) -> 600.0 | F77: 0.0 | G77: 0.0 | H77: 0.0 | I77: 0.0 | J77: 0.0 | K77: 5
B78: местный бюджет | C78: =SUM(D78:J78) -> 1,373.4 | D78: 773.4 | E78: 600.0 | F78: 0.0 | G78: 0.0 | H78: =SUM(G78) -> 0.0 | I78: =SUM(H78) -> 0.0 | J78: =SUM(I78) -> 0.0
A79: - Акарицидная обработка общественных мест
B80: Всего: | C80: =SUM(C81) -> 2030.2 | D80: =SUM(D81) -> 92.0 | E80: =SUM(E81) -> 300.0 | F80: 315.0 | G80: 330.8 | H80: 330.8 | I80: 330.8 | J80: 330.8 | K80: 12
B81: местный бюджет | C81: =SUM(D81:J81) -> 2030.2 | D81: 92.0 | E81: 300.0 | F81: 315.0 | G81: 330.8 | H81: 330.8 | I81: =SUM(H81) -> 330.8 | J81: =SUM(I81) -> 330.8
A82: - Приобретение грунта плодородного (земли садовой)
B83: Всего: | C83: =SUM(C84) -> 1206.4 | D83: =SUM(D84) -> 88.0 | E83: =SUM(E84) -> 80.0 | F83: 200 | G83: 209.6 | H83: 209.6 | I83: 209.6 | J83: 209.6 | K83: 9
B84: местный бюджет | C84: =SUM(D84:J84) -> 1206.4 | D84: 88.0 | E84: 80.0 | F84: 200.0 | G84: 209.6 | H84: =SUM(G84) -> 209.6 | I84: =SUM(H84) -> 209.6 | J84: =SUM(I84) -> 209.6
A85: - Благоустройство мест общего пользования территории Североуральского городского округа
B86: Всего: | C86: =SUM(C87) -> 1400.0 | D86: =SUM(D87) -> 0.0 | E86: =SUM(E87) -> 1400.0 | F86: 0 | G86: 0 | H86: 0 | I86: 0 | J86: 0 | K86: 5
B87: местный бюджет | C87: =SUM(D87:J87) -> 1400.0 | D87: 0.0 | E87: 1,400.0 | F87: 0.0 | G87: 0.0 | H87: 0.0 | I87: =SUM(H87) -> 0.0 | J87: =SUM(I87) -> 0.0
A88: Подпрограмма 2: Муниципальная программа по энергосбережению и повышению энергетической эффективности объектов Североуральского городского округа
B89: Всего по подпрограмме 2, в том числе | C89: =SUM(D89:J89) -> 71,248.2 | D89: =SUM(D90:D92) -> 9,165.5 | E89: =SUM(E90:E92) -> 4,752.5 | F89: 11,025.0 | G89: 11,576.3 | H89: 11,576.3 | I89: 11,576.3 | J89: 11,576.3 | K89: Х
B90: местный бюджет | C90: =SUM(D90:J90) -> 64,903.8 | D90: =SUM(D95+D118) -> 2,821.1 | E90: =SUM(E95+E118) -> 4,752.5 | F90: =F95+F118 -> 11,025.0 | G90: =SUM(G95+G118) -> 11,576.3 | H90: =SUM(H95+H118) -> 11,576.3 | I90: =SUM(I95+I118) -> 11,576.3 | J90: =SUM(J95+J118) -> 11,576.3
B91: областной бюджет | C91: =SUM(D91:J91) -> 6,344.4 | D91: =SUM(D96+D119) -> 6,344.4 | E91: =SUM(E96+E119) -> 0.0 | F91: 0.0 | G91: 0.0 | H91: 0.0 | I91: 0.0 | J91: 0.0
B92: федеральный бюджет | C92: =SUM(D92:J92) -> 0.0 | D92: 0.0 | E92: =SUM(E97+E119) -> 0.0 | F92: 0.0 | G92: 0.0 | H92: 0.0 | I92: 0.0 | J92: 0.0
A93: 1. Капитальные вложения
B94: Всего по направлению «Капитальные вложения», всего, в том числе | C94: =SUM(C95:C97) -> 28,743.8 | D94: =SUM(D95:D97) -> 4,173.6 | E94: =SUM(E95:E97) -> 0.0 | F94: 4,725.0 | G94: 4,961.3 | H94: 4,961.3 | I94: 4,961.3 | J94: 4,961.3 | K94: Х
B95: местный бюджет | C95: =SUM(D95:J95) -> 25,399.4 | D95: =SUM(D104) -> 829.2 | E95: =SUM(E104) -> 0.0 | F95: 4,725.0 | G95: 4,961.3 | H95: 4,961.3 | I95: 4,961.3 | J95: 4,961.3
B96: областной бюджет | C96: =SUM(D96:J96) -> 3,344.4 | D96: =SUM(D105) -> 3,344.4 | E96: =SUM(E105) -> 0.0 | F96: 0.0 | G96: 0.0 | H96: 0.0 | I96: 0.0 | J96: 0.0
B97: федеральный бюджет | C97: =SUM(D97:J97) -> 0.0 | D97: =SUM(D106) -> 0.0 | E97: =SUM(E106) -> 0.0 | F97: 0.0 | G97: 0.0 | H97: 0.0 | I97: 0.0 | J97: 0.0
A98: 1.1. Бюджетные инвестиции в объекты капитального строительства
B99: Бюджетные инвестиции в объекты капитального строительства всего, в том числе | C99: 0 | D99: 0 | E99: 0 | F99: 0 | G99: 0 | H99: 0 | I99: 0 | J99: 0 | K99: Х
B100: местный бюджет | C100: 0 | D100: 0 | E100: 0 | F100: 0 | G100: 0 | H100: 0 | I100: 0 | J100: 0
B101: областной бюджет
A102: 1.2. Иные капитальные вложения
B103: Всего, в том числе | C103: =SUM(C104:C106) -> 28,743.8 | D103: =SUM(D104:D106) -> 4,173.6 | E103: =SUM(E104:E106) -> 0.0 | F103: 4,725.0 | G103: 4,961.3 | H103: 4,961.3 | I103: 4,961.3 | J103: 4,961.3 | K103: Х
B104: местный бюджет | C104: =SUM(D104:J104) -> 25,399.4 | D104: =SUM(D109+D114) -> 829.2 | E104: =SUM(E109+E114) -> 0.0 | F104: 4,725.0 | G104: 4,961.3 | H104: 4,961.3 | I104: 4,961.3 | J104: 4,961.3
B105: областной бюджет | C105: =SUM(D105:J105) -> 3,344.4 | D105: =SUM(D110+D115) -> 3,344.4 | E105: =SUM(E110+E115) -> 0.0 | F105: 0.0 | G105: 0.0 | H105: 0.0 | I105: 0.0 | J105: 0.0
B106: федеральный бюджет | C106: =SUM(D106:J106) -> 0.0 | D106: =SUM(D111) -> 0.0 | E106: =SUM(E111) -> 0.0 | F106: 0.0 | G106: 0.0 | H106: 0.0 | I106: 0.0 | J106: 0.0
A107: Мероприятие 7- Реконструкция, модернизация водопроводных сетей, сетей системы водоотведения с заменой (без замены) оборудования с более высоким КПД, установка регулируемого привода, реконструкция тепловых сетей, в том числе тепловых пунктов, котельных
B108: Всего, из них | C108: =SUM(C109:C111) -> 27,607.6 | D108: =SUM(D109:D111) -> 3,037.4 | E108: =SUM(E109:E111) -> 0.0 | F108: 4,725.0 | G108: 4,961.3 | H108: 4,961.3 | I108: 4,961.3 | J108: 4,961.3 | K108: 27
B109: местный бюджет | C109: =SUM(D109:J109) -> 24,851.2 | D109: 281.0 | E109: 0.0 | F109: 4,725.0 | G109: 4,961.3 | H109: =SUM(G109) -> 4,961.3 | I109: 4,961.3 | J109: 4,961.3
B110: областной бюджет | C110: =SUM(D110:J110) -> 2,756.4 | D110: 2,756.4 | E110: 0.0 | F110: =SUM(E110*1.05) -> 0.0 | G110: 0.0 | H110: 0.0 | I110: 0.0 | J110: 0.0
B111: федеральный бюджет | C111: =SUM(D111:J111) -> 0.0 | D111: 0.0 | E111: 0.0 | F111: 0.0 | G111: =SUM(F111) -> 0.0 | H111: =SUM(G111) -> 0.0 | I111: =SUM(H111) -> 0.0 | J111: =SUM(I111) -> 0.0
A112: Мероприятие 9 - Закупка и установка осветительного оборудования с заменой неэффективного на энергосберегающее, в том числе замена ламп накаливания на энергосберегающие, модернизация сетей уличного освещения, проектно-сметные работы, экспертиза проектно-сметной документации
B113: всего, из них: | C113: =SUM(C114:C115) -> 1,136.2 | D113: =SUM(D114:D115) -> 1,136.2 | E113: =SUM(E114:E115) -> 0.0 | F113: 0.0 | G113: 0.0 | H113: 0.0 | I113: 0.0 | J113: 0.0 | K113: 26
B114: местный бюджет | C114: =SUM(D114:J114) -> 548.2 | D114: 548.2 | E114: 0.0 | F114: 0.0 | G114: 0.0 | H114: =SUM(G114) -> 0.0 | I114: 0.0 | J114: 0.0
B115: областной бюджет | C115: =SUM(D115:J115) -> 588.0 | D115: 588.0 | E115: 0.0 | F115: 0.0 | G115: 0.0 | H115: 0.0 | I115: 0.0 | J115: 0.0
A116: 3. Прочие нужды
B117: Всего по направлению «Прочие нужды», всего, в том числе: | C117: =SUM(D117:J117) -> 42,504.4 | D117: =SUM(D118:D119) -> 4,991.9 | E117: =SUM(E118:E119) -> 4,752.5 | F117: 6,300.0 | G117: 6,615.0 | H117: 6,615.0 | I117: 6,615.0 | J117: 6,615.0 | K117: Х
B118: местный бюджет | C118: =SUM(D118:J118) -> 39,504.4 | D118: =SUM(D122+D127+D131+D137+D134) -> 1,991.9 | E118: 4,752.5 | F118: 6,300.0 | G118: 6,615.0 | H118: 6,615.0 | I118: 6,615.0 | J118: 6,615.0
B119: областной бюджет | C119: =SUM(D119:J119) -> 3,000.0 | D119: =SUM(D128+D123) -> 3,000.0 | E119: 0.0 | F119: 0.0 | G119: 0.0 | H119: 0.0 | I119: 0.0 | J119: 0.0
A120: Мероприятие 8 - Оснащение зданий (строений, сооружений), находящихся в муниципальной собственности, многоквартирных жилых домов, жилых помещений, квартир приборами учета используемых энергетических ресурсов, в том числе разработка проектно-сметной документации
B121: всего, в том числе: | C121: =SUM(D121:J121) -> 21,880.0 | D121: =SUM(D122:D123) -> 4,200.0 | E121: 1,300.0 | F121: 3,150.0 | G121: 3,307.5 | H121: 3,307.5 | I121: 3,307.5 | J121: 3,307.5 | K121: 19,21,22,23,24
B122: местный бюджет | C122: =SUM(D122:J122) -> 18,880.0 | D122: 1,200.0 | E122: 1,300.0 | F122: 3,150.0 | G122: 3,307.5 | H122: =SUM(G122) -> 3,307.5 | I122: =SUM(H122) -> 3,307.5 | J122: =SUM(I122) -> 3,307.5
B123: областной бюджет | C123: =SUM(D123:J123) -> 3,000.0 | D123: 3,000.0 | E123: =SUM(E124) -> 0.0 | F123: 0.0 | G123: 0.0 | H123: 0.0 | I123: 0.0 | J123: 0.0
B124: федеральный бюджет | C124: =SUM(D124:J124) -> 0.0 | D124: 0.0 | E124: 0.0 | F124: 0.0 | G124: =SUM(F124) -> 0.0 | H124: =SUM(G124) -> 0.0 | I124: =SUM(H124) -> 0.0 | J124: =SUM(I124) -> 0.0
A125: Мероприятие 9 - Закупка и установка осветительного оборудования с заменой неэффективного на энергосберегающее, в том числе замена ламп накаливания на энергосберегающие, модернизация сетей уличного освещения, проектно-сметные работы, экспертиза проектно-сметной документации
B126: всего, из них: | C126: =SUM(C127:C128) -> 19,791.9 | D126: =SUM(D127:D128) -> 411.9 | E126: =SUM(E127:E128) -> 3,000.0 | F126: 3,150.0 | G126: 3,307.5 | H126: 3,307.5 | I126: 3,307.5 | J126: 3,307.5 | K126: 26
B127: местный бюджет | C127: =SUM(D127:J127) -> 19,791.9 | D127: 411.9 | E127: 3,000.0 | F127: 3,150.0 | G127: 3,307.5 | H127: =SUM(G127) -> 3,307.5 | I127: 3,307.5 | J127: 3,307.5
B128: областной бюджет | C128: =SUM(D128:J128) -> 0.0 | D128: 0.0 | E128: 0.0 | F128: 0.0 | G128: 0.0 | H128: 0.0 | I128: 0.0 | J128: 0.0
A129: Мероприятие 10 - Разработка схемы водоснабжения Североуральского городского округа
B130: всего, из них: | C130: =SUM(D130:J130) -> 380.0 | D130: =SUM(D131) -> 380.0 | E130: =SUM(E131) -> 0.0 | F130: 0.0 | G130: 0.0 | H130: 0.0 | I130: 0.0 | J130: 0.0 | K130: 28
B131: местный бюджет | C131: =SUM(D131:J131) -> 380.0 | D131: 380.0 | E131: 0.0 | F131: 0.0 | G131: =SUM(F131) -> 0.0 | H131: =SUM(G131) -> 0.0 | I131: =SUM(H131) -> 0.0 | J131: =SUM(I131) -> 0.0
A132: Мероприятие 11 - Разработка и экспертиза проектно-сметной документации на строительство сетей водоснабжения микрорайонов Южный и Горный
B133: всего, из них: | C133: =SUM(D133:J133) -> 400.0 | D133: =SUM(D134) -> 0.0 | E133: =SUM(E134) -> 400.0 | F133: 0.0 | G133: 0.0 | H133: 0.0 | I133: 0.0 | J133: 0.0 | K133: 29
B134: местный бюджет | C134: =SUM(D134:J134) -> 400.0 | D134: 0.0 | E134: 400.0 | F134: 0.0 | G134: =SUM(F134) -> 0.0 | H134: =SUM(G134) -> 0.0 | I134: =SUM(H134) -> 0.0 | J134: =SUM(I134) -> 0.0
A135: Мероприятие 12 - Прочие мероприятия (оформление актов выбора трассы под строительство водопроводов, сетей уличного освещения, газопроводов и т.п.)
B136: всего, из них: | C136: =SUM(D136:J136) -> 52.5 | D136: =SUM(D137) -> 0.0 | E136: =SUM(E137) -> 52.5 | F136: 0.0 | G136: 0.0 | H136: 0.0 | I136: 0.0 | J136: 0.0 | K136: 30
B137: местный бюджет | C137: =SUM(D137:J137) -> 52.5 | D137: 0.0 | E137: 52.5 | F137: 0.0 | G137: =SUM(F137) -> 0.0 | H137: =SUM(G137) -> 0.0 | I137: =SUM(H137) -> 0.0 | J137: =SUM(I137) -> 0.0
A138: Подпрограмма 3: Развитие лесного хозяйства на территории Североуральского городского округа
B139: Всего по подпрограмме 1, всего, в том числе | C139: =SUM(C140:C140) -> 2,698.2 | D139: =SUM(D140) -> 774.1 | E139: =SUM(E140) -> 881.1 | F139: 200.6 | G139: 210.6 | H139: 210.6 | I139: 210.6 | J139: 210.6 | K139: Х
B140: местный бюджет | C140: =SUM(D140:J140) -> 2,698.2 | D140: =SUM(D152) -> 774.1 | E140: =SUM(E152) -> 881.1 | F140: 200.6 | G140: 210.6 | H140: 210.6 | I140: 210.6 | J140: 210.6
A141: 1. Капитальные вложения
B142: Всего по направлению «Капитальные вложения», всего, в том числе | C142: 0 | D142: 0 | E142: 0 | F142: 0 | G142: 0 | H142: 0 | I142: 0 | J142: 0 | K142: Х
B143: местный бюджет | C143: 0 | D143: 0 | E143: 0 | F143: 0 | G143: 0 | H143: 0 | I143: 0 | J143: 0
A144: 1.1. Бюджетные инвестиции в объекты капитального строительства
B145: Бюджетные инвестиции в объекты капитального строительства всего, в том числе: | C145: =SUM(C146) -> 0 | D145: =SUM(D146) -> 0 | E145: 0 | F145: 0 | G145: 0 | H145: 0 | I145: 0 | J145: 0 | K145: Х
B146: местный бюджет | C146: 0 | D146: 0 | E146: 0 | F146: 0 | G146: 0 | H146: 0 | I146: 0 | J146: 0
A147: 1.2. Иные капитальные вложения
B148: Всего, в том числе: | C148: =SUM(A150) -> 0 | D148: 0 | E148: 0 | F148: 0 | G148: 0 | H148: 0 | I148: 0 | J148: 0 | K148: Х
B149: местный бюджет | C149: 0 | D149: 0 | E149: 0 | F149: 0 | G149: 0 | H149: 0 | I149: 0 | J149: 0
A150: 3. Прочие нужды
B151: Всего, из них | C151: =SUM(C152:C152) -> 2,698.2 | D151: 774.1 | E151: 881.1 | F151: 200.6 | G151: 210.6 | H151: 210.6 | I151: 210.6 | J151: 210.6 | K151: Х
B152: местный бюджет | C152: =SUM(D152:J152) -> 2,698.2 | D152: =SUM(D155) -> 774.1 | E152: =SUM(E155) -> 881.1 | F152: 200.6 | G152: 210.6 | H152: 210.6 | I152: 210.6 | J152: 210.6
A153: Мероприятие 13 - Развитие лесного хозяйства на территории Североуральского городского округа
B154: Всего, в том числе: | C154: =SUM(D154:J154) -> 2,698.2 | D154: =SUM(D155) -> 774.1 | E154: =SUM(E155) -> 881.1 | F154: 200.6 | G154: 210.6 | H154: 210.6 | I154: 210.6 | J154: 210.6 | K154: 34
B155: местный бюджет | C155: =SUM(D155:J155) -> 2,698.2 | D155: =SUM(D158) -> 774.1 | E155: =SUM(E158) -> 881.1 | F155: 200.6 | G155: 210.6 | H155: 210.6 | I155: 210.6 | J155: 210.6
A156: - Межевание городских лесов, постановка на кадастровый учет
B157: Всего: | C157: =SUM(C158) -> 2,698.2 | D157: =SUM(D158) -> 774.1 | E157: =SUM(E158) -> 881.1 | F157: 200.6 | G157: 210.6 | H157: 210.6 | I157: 210.6 | J157: 210.6 | K157: 34
B158: местный бюджет | C158: =SUM(D158:J158) -> 2,698.2 | D158: 774.1 | E158: 881.1 | F158: 200.6 | G158: 210.6 | H158: =SUM(G158) -> 210.6 | I158: =SUM(H158) -> 210.6 | J158: =SUM(I158) -> 210.6
A159: Подпрограмма 4 : Переселение граждан на территории Североуральского городского округа из аварийного жилищного фонда
B160: Всего по подпрограмме 4, всего, в том числе | C160: =SUM(C161:C163) -> 494,474.9 | D160: =SUM(D161:D163) -> 223,750.0 | E160: 270,724.9 | F160: 0.0 | G160: 0.0 | H160: 0.0 | I160: 0.0 | J160: 0.0 | K160: Х
B161: местный бюджет | C161: =SUM(D161:J161) -> 93,056.0 | D161: =SUM(D166+D184) -> 40,275.0 | E161: =SUM(E166+E184) -> 52,781.0 | F161: 0.0 | G161: 0.0 | H161: 0.0 | I161: 0.0 | J161: 0.0
B162: областной бюджет | C162: =SUM(D162:J162) -> 233,101.3 | D162: =SUM(D167) -> 101,657.0 | E162: =SUM(E167) -> 131,444.3 | F162: 0.0 | G162: 0.0 | H162: 0.0 | I162: 0.0 | J162: 0.0
B163: федеральный бюджет | C163: =SUM(D163:J163) -> 168,317.6 | D163: =SUM(D168) -> 81,818.0 | E163: =SUM(E168) -> 86,499.6 | F163: 0.0 | G163: 0.0 | H163: 0.0 | I163: 0.0 | J163: 0.0
A164: 1. Капитальные вложения
B165: Всего по направлению «Капитальные вложения», всего, в том числе | C165: =SUM(C166:C168) -> 493,674.9 | D165: =SUM(D166:D168) -> 223,750.0 | E165: =SUM(E166:E168) -> 269,924.9 | F165: 0.0 | G165: 0.0 | H165: 0.0 | I165: 0.0 | J165: 0.0 | K165: Х
B166: местный бюджет | C166: =SUM(D166:J166) -> 92,256.0 | D166: =SUM(D179) -> 40,275.0 | E166: =SUM(E179) -> 51,981.0 | F166: 0.0 | G166: 0.0 | H166: 0.0 | I166: 0.0 | J166: 0.0
B167: областной бюджет | C167: =SUM(D167:J167) -> 233,101.3 | D167: =SUM(D180) -> 101,657.0 | E167: =SUM(E180) -> 131,444.3 | F167: 0.0 | G167: 0.0 | H167: 0.0 | I167: 0.0 | J167: 0.0
B168: федеральный бюджет | C168: =SUM(D168:J168) -> 168,317.6 | D168: =SUM(D181) -> 81,818.0 | E168: =SUM(E181) -> 86,499.6 | F168: 0.0 | G168: 0.0 | H168: 0.0 | I168: 0.0 | J168: 0.0
A169: 1.1. Бюджетные инвестиции в объекты капитального строительства
B170: Бюджетные инвестиции в объекты капитального строительства всего, в том числе: | C170: =SUM(C171) -> 0 | D170: =SUM(D171) -> 0 | E170: 0 | F170: 0 | G170: 0 | H170: 0 | I170: 0 | J170: 0 | K170: Х
B171: местный бюджет | C171: 0 | D171: 0 | E171: 0 | F171: 0 | G171: 0 | H171: 0 | I171: 0 | J171: 0
A172: 1.2. Иные капитальные вложения
B173: Всего, в том числе: | C173: =SUM(D173:J173) -> 480,114.8 | D173: =SUM(D174:D176) -> 210,189.9 | E173: =SUM(E174:E176) -> 269,924.9 | F173: 0.0 | G173: 0.0 | H173: 0.0 | I173: 0.0 | J173: 0.0 | K173: Х
B174: местный бюджет | C174: =SUM(D174:J174) -> 92,256.0 | D174: =SUM(D179) -> 40,275.0 | E174: 51,981.0 | F174: 0.0 | G174: 0.0 | H174: 0.0 | I174: 0.0 | J174: 0.0
B175: областной бюджет | C175: =SUM(D175:J175) -> 233,101.3 | D175: =SUM(D180) -> 101,657.0 | E175: =SUM(E180) -> 131,444.3 | F175: 0.0 | G175: 0.0 | H175: 0.0 | I175: 0.0 | J175: 0.0
B176: федеральный бюджет | C176: =SUM(D176:J176) -> 154,757.5 | D176: 68,257.9 | E176: =SUM(E181) -> 86,499.6 | F176: 0.0 | G176: 0.0 | H176: 0.0 | I176: 0.0 | J176: 0.0
A177: Мероприятие 14 - Переселение граждан на территории Североуральского городского округа из аварийного жилищного фонда
B178: Всего по направлению «Капитальные вложения», всего, в том числе | C178: =SUM(D178:J178) -> 493,674.9 | D178: =SUM(D179:D181) -> 223,750.0 | E178: =SUM(E179:E181) -> 269,924.9 | F178: 0.0 | G178: 0.0 | H178: 0.0 | I178: 0.0 | J178: 0.0 | K178: 38,40,41
B179: местный бюджет | C179: =SUM(D179:J179) -> 92,256.0 | D179: 40,275.0 | E179: 51,981.0 | F179: 0.0 | G179: 0.0 | H179: 0.0 | I179: 0.0 | J179: 0.0
B180: областной бюджет | C180: =SUM(D180:J180) -> 233,101.3 | D180: 101,657.0 | E180: 131,444.3 | F180: 0.0 | G180: 0 | H180: 0 | I180: 0 | J180: 0
B181: федеральный бюджет | C181: =SUM(D181:J181) -> 168,317.6 | D181: 81,818.0 | E181: 86,499.6 | F181: 0.0 | G181: 0 | H181: 0 | I181: 0 | J181: 0
A182: 3. Прочие нужды
B183: Всего, в том числе: | C183: =SUM(D183:J183) -> 800.0 | D183: =SUM(D184) -> 0.0 | E183: =SUM(E184) -> 800.0 | F183: 0.0 | G183: 0.0 | H183: 0.0 | I183: 0.0 | J183: 0.0 | K183: Х
B184: местный бюджет | C184: =SUM(C187+C190) -> 800.0 | D184: 0.0 | E184: 800.0 | F184: 0.0 | G184: 0.0 | H184: 0.0 | I184: 0.0 | J184: 0.0
A185: Мероприятие 15 - Осуществление сноса аварийных домов и высвобождение земельных участков под новое жилищное строительство
B186: Всего, из них | C186: =SUM(D186:J186) -> 600.0 | D186: =SUM(D187) -> 0.0 | E186: =SUM(E187) -> 600.0 | F186: 0.0 | G186: 0.0 | H186: 0.0 | I186: 0.0 | J186: 0.0 | K186: 41
B187: местный бюджет | C187: =SUM(D187:J187) -> 600.0 | D187: 0.0 | E187: 600.0 | F187: 0.0 | G187: 0.0 | H187: 0.0 | I187: 0.0 | J187: 0.0
A188: Мероприятие 15.1. - Обследование жилищного фонда на предмет признания его аварийным
B189: Всего, из них | C189: =SUM(D189:J189) -> 200.0 | D189: =SUM(D190) -> 0.0 | E189: =SUM(E190) -> 200.0 | F189: 0.0 | G189: 0.0 | H189: 0.0 | I189: 0.0 | J189: 0.0 | K189: 41
B190: местный бюджет | C190: =SUM(D190:J190) -> 200.0 | D190: 0.0 | E190: 200.0 | F190: 0.0 | G190: 0.0 | H190: 0.0 | I190: 0.0 | J190: 0.0
A191: Подпрограмма 5 : Содержание и капитальный ремонт общего имущества муниципального жилищного фонда на территории Североуральского городского округа
B192: Всего по подпрограмме 5, в том числе | C192: =C193 -> 124,298.6 | D192: =D193 -> 9,057.0 | E192: =E193 -> 16,486.2 | F192: 18,991.4 | G192: 19,941.0 | H192: 19,941.0 | I192: 19,941.0 | J192: 19,941.0 | K192: Х
B193: местный бюджет | C193: =SUM(D193:J193) -> 124,298.6 | D193: =SUM(D205) -> 9,057.0 | E193: =SUM(E205) -> 16,486.2 | F193: 18,991.4 | G193: 19,941.0 | H193: 19,941.0 | I193: 19,941.0 | J193: 19,941.0
A194: 1. Капитальные вложения
B195: Всего по направлению «Капитальные вложения», всего, в том числе | C195: =SUM(C196) -> 0 | D195: =SUM(D196) -> 0 | E195: 0 | F195: 0 | G195: 0 | H195: 0 | I195: 0 | J195: 0 | K195: Х
B196: местный бюджет | C196: 0 | D196: 0 | E196: 0 | F196: 0 | G196: 0 | H196: 0 | I196: 0 | J196: 0
A197: 1.1. Бюджетные инвестиции в объекты капитального строительства
B198: Бюджетные инвестиции в объекты капитального строительства всего, в том числе: | C198: =SUM(C199) -> 0 | D198: =SUM(D199) -> 0 | E198: 0 | F198: 0 | G198: 0 | H198: 0 | I198: 0 | J198: 0 | K198: Х
B199: местный бюджет | C199: =SUM(D199:J199) -> 0 | D199: 0 | E199: 0 | F199: 0 | G199: 0 | H199: 0 | I199: 0 | J199: 0
A200: 1.2. Иные капитальные вложения
B201: Всего, в том числе: | C201: 0 | D201: =SUM(C199) -> 0 | E201: 0 | F201: 0 | G201: 0 | H201: 0 | I201: 0 | J201: 0 | K201: Х
... 144 more rows

Sheet Лист2

Sheet Лист3
